bitfinex-derivatives/quotes_SOLF0:USTF0_20250819
["timestamp","ask_amount","ask_price","bid_price","bid_amount"]
[1755624451720,2.56392579,178.24,178.1,3.17]
[1755624451919,2.88,178.25,178.1,3.17]
[1755624452423,2.88,178.25,178.12,3.17]
[1755624455828,2.88,178.25,178.16,3.17]
[1755624459728,2.88,178.25,178.11,7.46927248]
[1755624459924,2.88,178.25,178.12,3.1]
[1755624462835,2.88,178.25,178.15,7.46927248]
[1755624463035,2.88,178.25,178.16,3.1]
[1755624463733,2.88,178.25,178.11,3.1]
[1755624466227,2.88,178.25,178.11,5.6147]
[1755624466425,2.88,178.25,178.12,3.1]
[1755624467333,2.88,178.25,178.14,7.46927248]
[1755624467637,2.88,178.25,178.15,3.1]
[1755624468334,2.93,178.31,178.15,3.1]
[1755624468528,2.93,178.31,178.18,7.46927248]
[1755624468725,2.93,178.31,178.19,3.1]
[1755624469131,2.93,178.31,178.22,7.46927248]
[1755624469334,2.93,178.31,178.23,3.1]
[1755624471835,2.93,178.31,178.18,150.64927248]
[1755624471836,2.93,178.31,178.19,3.1]
[1755624478040,2.93,178.34,178.22,3.1]
[1755624478642,2.93,178.32,178.22,3.1]
[1755624480447,2.93,178.36,178.26,3.1]
[1755624481245,9.14776467,178.48,178.34,3.1]
[1755624481449,2.56106994,178.47,178.34,3.1]
[1755624481649,2.93,178.48,178.34,3.1]
[1755624481845,2.93,178.48,178.38,3.1]
[1755624482546,0.03683708,178.45,178.38,3.1]
[1755624483546,2.96683708,178.45,178.37,7.46927248]
[1755624484052,0.03683708,178.45,178.38,3.1]
[1755624487541,2.93,178.44,178.34,3.1]
[1755624487942,2.93,178.44,178.37,7.46927248]
[1755624488146,2.93,178.48,178.37,10.56927248]
[1755624488652,2.93,178.48,178.41,7.46927248]
[1755624488854,2.93,178.52,178.42,3.1]
[1755624489049,3.90544568,178.52,178.42,3.1]
[1755624490155,3.11,178.51,178.38,2.88]
[1755624493156,3.11,178.5,178.34,2.88]
[1755624494958,3.11,178.46,178.34,2.88]
[1755624498062,3.11,178.5,178.34,2.88]
[1755624498265,3.11,178.5,178.38,2.88]
[1755624500960,3.11,178.5,178.34,10.34927248]
[1755624501156,0.03784756,178.46,178.42,0.03810783]
[1755624501556,3.11,178.44,178.42,0.03810783]
[1755624501759,3.11,178.43,178.42,0.03810783]
[1755624504166,0.03784756,178.46,178.42,0.03810783]
[1755624504366,3.11,178.45,178.42,0.03810783]
[1755624504763,3.11,178.44,178.42,0.03810783]
[1755624505065,0.03784756,178.46,178.42,0.03810783]
[1755624505262,3.11,178.45,178.42,0.03810783]
[1755624505467,3.11,178.44,178.42,0.03810783]
[1755624505769,3.11,178.43,178.42,0.03810783]
[1755624506270,3.11,178.45,178.42,0.03810783]
[1755624506763,0.03784756,178.46,178.42,0.03810783]
[1755624506966,3.11,178.44,178.42,0.03810783]
[1755624507365,0.03784756,178.46,178.42,0.03810783]
[1755624507366,3.11,178.43,178.42,0.03810783]
[1755624509070,3.11,178.45,178.42,0.03810783]
[1755624509271,0.03784756,178.46,178.42,0.03810783]
[1755624509569,3.14784756,178.46,178.42,0.03810783]
[1755624509764,3.11,178.44,178.42,0.03810783]
[1755624510170,3.11,178.51,178.42,0.03810783]
[1755624511173,3.11,178.51,178.43,2.88]
[1755624511469,0.97544568,178.52,178.43,2.88]
[1755624512172,3.11,178.51,178.46,0.03797795]
[1755624512471,0.97544568,178.52,178.46,0.03797795]
[1755624512676,3.11,178.51,178.4,2.88]
[1755624513067,3.11,178.51,178.33,7.46927248]
[1755624513273,3.11,178.49,178.34,2.88]
[1755624514173,3.11,178.49,178.37,7.46927248]
[1755624514380,3.11,178.49,178.38,2.88]
[1755624514678,142.78,178.51,178.38,2.88]
[1755624517472,3.11,178.5,178.38,2.88]
[1755624520173,142.78,178.51,178.38,2.88]
[1755624520174,3.08,178.48,178.38,2.88]
[1755624520370,3.08,178.48,178.33,3.15]
[1755624520573,3.08,178.46,178.33,3.15]
[1755624521182,10.01267966,178.45,178.33,3.15]
[1755624521377,3.08,178.43,178.33,3.15]
[1755624523175,2.54941286,178.42,178.33,3.15]
[1755624523379,3.08,178.43,178.33,3.15]
[1755624523581,2.5492852,178.42,178.33,3.15]
[1755624523773,3.08,178.43,178.33,3.15]
[1755624523976,3.08,178.41,178.33,3.15]
[1755624524975,3.08,178.41,178.29,3.15]
[1755624525178,3.08,178.39,178.29,3.15]
[1755624525378,2.55390411,178.38,178.29,3.15]
[1755624525580,3.08,178.39,178.29,3.15]
[1755624527680,6.21776467,178.41,178.29,3.15]
[1755624527996,7.46927248,178.45,178.29,3.15]
[1755624527997,3.08,178.42,178.29,3.15]
[1755624528182,2.55060682,178.41,178.29,3.15]
[1755624528483,3.08,178.42,178.29,3.15]
[1755624528682,3.08,178.4,178.29,3.15]
[1755624529080,2.55045543,178.39,178.29,3.15]
[1755624529279,3.08,178.37,178.29,3.15]
[1755624530089,6.21776467,178.4,178.29,3.15]
[1755624530390,3.08,178.41,178.29,3.15]
[1755624530790,2.54897302,178.4,178.29,3.15]
[1755624531091,3.08,178.38,178.29,3.15]
[1755624534295,3.08,178.38,178.29,7.95507812]
[1755624534600,3.08,178.42,178.3,3.15]
[1755624535097,3.08,178.42,178.33,3.15]
[1755624535304,4.80507812,178.46,178.33,3.15]
[1755624535504,3.08,178.45,178.35,4.80507812]
[1755624535700,7.88507812,178.49,178.38,4.80507812]
[1755624535900,7.88507812,178.49,178.38,3.15]
[1755624535901,2.5458107,178.48,178.38,3.15]
[1755624536204,3.08,178.47,178.38,3.15]
[1755624536699,3.08,178.45,178.34,3.15]
[1755624541098,3.08,178.43,178.3,3.15]
[1755624541405,3.08,178.41,178.3,3.15]
[1755624544299,3.08,178.45,178.3,3.15]
[1755624544609,3.08,178.45,178.33,3.15]
[1755624545304,0.03807071,178.41,178.38,3.15]
[1755624545500,0.03807071,178.41,178.37,0.03917686]
[1755624545807,3.08,178.46,178.37,3.15]
[1755624550908,3.08,178.46,178.32,142.72]
[1755624551104,2.54592397,178.45,178.33,3.12]
[1755624551308,3.08,178.46,178.33,3.12]
[1755624551607,3.07,178.44,178.33,3.12]
[1755624552906,3.07,178.44,178.32,142.72]
[1755624553105,3.07,178.42,178.29,3.12]
[1755624553303,2.54615171,178.41,178.29,3.12]
[1755624553504,3.07,178.4,178.29,3.12]
[1755624553806,3.07,178.38,178.29,3.12]
[1755624554103,6.21776467,178.42,178.28,189.24878518]
[1755624554104,3.07,178.44,178.33,3.12]
[1755624554508,3.07,178.42,178.33,3.12]
[1755624554905,3.07,178.45,178.33,3.12]
[1755624555109,3.07,178.43,178.33,3.12]
[1755624555905,3.07,178.46,178.33,3.12]
[1755624556210,2.54629615,178.45,178.33,3.12]
[1755624556411,3.07,178.46,178.33,3.12]
[1755624556709,3.07,178.49,178.37,3.12]
[1755624557503,2.54712409,178.48,178.37,3.12]
[1755624557808,3.07,178.49,178.37,3.12]
[1755624559309,3.07,178.49,178.35,4.67106485]
[1755624559310,3.07,178.49,178.4,7.46810057]
[1755624559509,0.97544568,178.52,178.41,3.12]
[1755624561805,3.07,178.51,178.41,3.12]
[1755624567716,3.07,178.51,178.38,7.46810057]
[1755624568023,3.07,178.49,178.39,3.12]
[1755624568420,3.07,178.49,178.4,4.79755953]
[1755624569315,3.07,178.49,178.39,3.12]
[1755624570918,3.07,178.49,178.4,4.79755953]
[1755624571420,3.07,178.49,178.41,3.12]
[1755624571918,0.97544568,178.52,178.41,3.12]
[1755624572125,0.97544568,178.52,178.43,4.79755953]
[1755624572421,0.97544568,178.52,178.44,3.12]
[1755624573127,0.97544568,178.52,178.46,4.79755953]
[1755624573326,3.07,178.57,178.47,3.12]
[1755624573526,0.97511769,178.55,178.47,3.12]
[1755624575124,3.07,178.54,178.47,3.12]
[1755624577825,3.07,178.54,178.43,3.12]
[1755624578025,3.07,178.52,178.39,3.12]
[1755624578622,0.03721813,178.47,178.39,3.12]
[1755624579630,3.10721813,178.47,178.39,3.12]
[1755624579832,3.10721813,178.47,178.35,3.12]
[1755624580220,3.07,178.47,178.35,3.12]
[1755624581431,3.07,178.51,178.35,7.79106485]
[1755624581631,3.07,178.51,178.36,3.12]
[1755624583540,2.54336994,178.5,178.36,3.12]
[1755624583835,3.07,178.49,178.36,3.12]
[1755624586930,3.07,178.49,178.36,5.6061]
[1755624587130,3.07,178.49,178.37,3.12]
[1755624587330,142.56,178.52,178.38,7.45818394]
[1755624587526,142.56,178.52,178.39,3.12]
[1755624587727,3.07,178.53,178.39,3.12]
[1755624587932,3.07,178.53,178.43,3.12]
[1755624590535,0.97511769,178.55,178.43,3.12]
[1755624590834,3.07,178.57,178.43,3.12]
[1755624591035,4.04515867,178.57,178.43,3.12]
[1755624596439,4.04515867,178.57,178.47,7.91360164]
[1755624596836,3.07,178.56,178.47,4.79360164]
[1755624597942,3.07,178.56,178.48,3.12]
[1755624598845,3.07,178.56,178.46,4.79360164]
[1755624599935,3.07,178.56,178.45,3.12]
[1755624600241,2.53817034,178.55,178.43,4.79360164]
[1755624600437,3.07,178.5,178.37,3.12]
[1755624600642,3.07,178.47,178.37,3.12]
[1755624601239,3.07,178.47,178.39,4.79360164]
[1755624601436,3.07,178.47,178.4,3.12]
[1755624601937,3.07,178.49,178.4,3.12]
[1755624604335,3.07,178.54,178.43,3.12]
[1755624608446,3.07,178.51,178.43,3.12]
[1755624609246,3.07,178.51,178.39,4.79360164]
[1755624609446,3.07,178.51,178.39,3.06]
[1755624609749,3.02,178.49,178.39,3.06]
[1755624609950,4.79360164,178.49,178.39,3.06]
[1755624610145,4.79360164,178.46,178.36,3.06]
[1755624610350,3.02,178.45,178.36,3.06]
[1755624611039,3.02,178.45,178.33,200.07439249]
[1755624611040,3.02,178.45,178.33,198.34079085]
[1755624611347,3.02,178.47,178.34,3.06]
[1755624611548,3.02,178.47,178.36,4.79360164]
[1755624611850,3.02,178.47,178.37,3.06]
[1755624614145,3.02,178.47,178.39,3.06]
[1755624614346,142.42,178.51,178.39,3.06]
[1755624614650,142.42,178.51,178.41,4.79360164]
[1755624614842,142.42,178.51,178.42,3.06]
[1755624615444,7.81360164,178.5,178.39,3.06]
[1755624615644,5.55937488,178.49,178.39,3.06]
[1755624615940,3.02,178.49,178.39,3.06]
[1755624618556,3.02,178.49,178.36,3.06]
[1755624619354,4.79360164,178.47,178.36,3.06]
[1755624619856,3.02,178.43,178.36,3.06]
[1755624621954,0.03602346,178.44,178.36,3.06]
[1755624623553,0.03602346,178.44,178.38,4.82911783]
[1755624623761,0.03602346,178.44,178.41,4.79360164]
[1755624623959,3.02,178.5,178.43,3.06]
[1755624624150,3.02,178.54,178.43,3.06]
[1755624624366,3.02,178.54,178.45,3.06]
[1755624624971,143.35515867,178.57,178.47,4.79360164]
[1755624625163,143.35515867,178.57,178.48,3.06]
[1755624625461,0.97515867,178.57,178.48,3.06]
[1755624626661,0.97515867,178.57,178.5,4.79360164]
[1755624626853,4.27448,178.6,178.51,7.85360164]
[1755624627059,5.24936549,178.6,178.51,7.85360164]
[1755624628958,5.24936549,178.6,178.51,3.06]
[1755624629158,3.02,178.59,178.51,3.06]
[1755624630050,3.02,178.59,178.46,7.85360164]
[1755624630651,3.02,178.59,178.47,3.06]
[1755624631557,7.81360164,178.59,178.47,3.06]
[1755624631965,3.02,178.58,178.47,3.06]
[1755624632852,3.02,178.58,178.49,4.79360164]
[1755624633056,3.02,178.58,178.5,3.06]
[1755624633256,5.24936549,178.6,178.5,3.06]
[1755624634163,3.02,178.59,178.5,3.06]
[1755624634473,3.02,178.58,178.5,3.06]
[1755624635768,7.81360164,178.58,178.47,3.06]
[1755624636270,3.02,178.58,178.47,3.06]
[1755624637571,3.02,178.57,178.47,3.06]
[1755624642171,8.40936549,178.6,178.5,3.03]
[1755624643270,8.40936549,178.6,178.53,3.03]
[1755624643870,0.04309086,178.58,178.53,3.03]
[1755624644171,0.04309086,178.58,178.55,0.03728191]
[1755624644574,0.04309086,178.58,178.56,3.03]
[1755624647376,0.04309086,178.58,178.57,3.03]
[1755624649972,4.27448,178.6,178.57,3.03]
[1755624650177,3.16,178.7,178.6,3.03]
[1755624650677,4.13433959,178.7,178.6,3.03]
[1755624651265,142.18,178.73,178.63,3.03]
[1755624651576,3.16,178.72,178.63,3.06537176]
[1755624652676,3.16,178.72,178.63,0.03537176]
[1755624653081,4.79360164,178.71,178.63,0.03537176]
[1755624653275,3.16,178.7,178.63,0.03537176]
[1755624660683,3.16,178.68,178.63,0.03537176]
[1755624660881,4.79360164,178.71,178.63,0.03537176]
[1755624661078,3.16,178.7,178.63,0.03537176]
[1755624661474,3.16,178.7,178.63,3.06537176]
[1755624661680,143.01425776,178.73,178.63,3.06537176]
[1755624664186,143.01425776,178.73,178.64,4.79360164]
[1755624664187,0.97425776,178.73,178.64,4.79360164]
[1755624664388,3.16,178.78,178.67,4.79360164]
[1755624664686,3.16,178.78,178.68,3.03]
[1755624664888,0.97398508,178.77,178.68,3.03]
[1755624665082,0.97398508,178.77,178.72,3.03]
[1755624665279,0.97398508,178.77,178.73,3.03]
[1755624665580,3.16,178.78,178.71,0.03743392]
[1755624665983,3.16,178.76,178.71,0.03743392]
[1755624666183,3.16,178.77,178.71,0.03743392]
[1755624666684,4.79360164,178.76,178.71,0.03743392]
[1755624667491,4.79360164,178.77,178.71,0.03743392]
[1755624667692,3.16,178.74,178.71,0.03743392]
[1755624667882,3.16,178.77,178.71,0.03743392]
[1755624668890,7.95360164,178.77,178.71,0.03743392]
[1755624669195,4.79360164,178.74,178.71,0.03743392]
[1755624669495,7.77360164,178.74,178.71,0.03743392]
[1755624669797,2.98,178.73,178.71,0.03743392]
[1755624670000,2.98,178.72,178.71,0.03743392]
[1755624670489,2.98,178.74,178.71,0.03743392]
[1755624670693,2.98,178.73,178.71,0.03743392]
[1755624670896,2.98,178.73,178.63,3.17]
[1755624671093,4.79360164,178.71,178.63,3.17]
[1755624671599,2.98,178.7,178.63,3.17]
[1755624672896,4.79360164,178.73,178.63,3.17]
[1755624673094,7.19165435,178.78,178.64,3.17]
[1755624673095,4.79360164,178.76,178.64,3.17]
[1755624673300,2.98,178.75,178.64,3.17]
[1755624673492,2.98,178.75,178.67,3.17]
[1755624673698,0.97388968,178.78,178.67,3.17]
[1755624674194,2.98,178.77,178.67,3.17]
[1755624674394,4.79360164,178.75,178.67,3.17]
[1755624674594,2.98,178.74,178.67,3.17]
[1755624674796,2.98,178.74,178.63,7.96360164]
[1755624675898,2.98,178.74,178.63,3.17]
[1755624676301,2.98,178.71,178.6,3.17]
[1755624676498,7.19165435,178.78,178.6,3.17]
[1755624676499,4.79360164,178.69,178.6,3.17]
[1755624676802,2.98,178.68,178.58,212.11042731]
[1755624677200,4.79360164,178.66,178.58,212.11042731]
[1755624677407,2.98,178.65,178.57,3.17]
[1755624680500,2.98,178.69,178.57,3.17]
[1755624681102,2.98,178.69,178.59,4.79360164]
[1755624681306,144.9,178.73,178.63,3.17]
[1755624681604,4.79360164,178.71,178.59,3.17]
[1755624681802,2.98,178.7,178.59,3.17]
[1755624682107,2.98,178.67,178.59,3.17]
[1755624682306,148.13776467,178.73,178.61,3.17]
[1755624682307,2.98,178.71,178.61,3.17]
[1755624683408,2.98,178.7,178.61,3.17]
[1755624686001,2.98,178.7,178.57,7.96360164]
[1755624686602,2.98,178.7,178.58,3.17]
[1755624687804,2.98,178.7,178.61,3.17]
[1755624688004,141.92,178.73,178.61,3.17]
[1755624688005,144.9,178.73,178.61,3.17]
[1755624688306,2.51820385,178.72,178.61,3.17]
[1755624688505,144.9,178.73,178.61,3.17]
[1755624688706,2.51917867,178.72,178.61,3.17]
[1755624688909,144.9,178.73,178.61,3.17]
[1755624690106,144.9,178.73,178.63,4.79360164]
[1755624690305,2.98,178.77,178.66,4.79360164]
[1755624690509,2.520435,178.76,178.67,3.17]
[1755624690710,2.98,178.77,178.67,3.17]
[1755624692007,2.98,178.77,178.69,4.79360164]
[1755624692309,0.97388968,178.78,178.7,3.17]
[1755624692709,2.98,178.81,178.72,4.79360164]
[1755624693008,390.40024865,178.86,178.73,3.17]
[1755624693009,2.98,178.85,178.73,3.17]
[1755624693209,0.97369894,178.82,178.73,3.17]
[1755624693410,0.97369894,178.82,178.75,4.79360164]
[1755624694012,2.98,178.85,178.76,3.17]
[1755624694203,2.51758961,178.84,178.76,3.17]
[1755624694410,3.95352188,178.85,178.76,3.17]
[1755624696515,5.49457537,178.84,178.72,7.96360164]
[1755624696722,7.30853669,178.83,178.72,7.96360164]
[1755624697020,5.49488097,178.82,178.72,3.17]
[1755624697206,2.98,178.82,178.72,3.17]
[1755624698215,2.98,178.79,178.68,3.17]
[1755624698915,2.98,178.79,178.66,4.79360164]
[1755624698916,2.98,178.79,178.7,3.17]
[1755624699506,149.54360164,178.83,178.72,4.79360164]
[1755624699714,144.75,178.83,178.73,3.12]
[1755624699919,2.91,178.83,178.73,3.12]
[1755624701219,7.70360164,178.83,178.73,3.12]
[1755624701519,2.91,178.82,178.73,3.12]
[1755624702116,2.91,178.82,178.69,7.91360164]
[1755624702321,2.91,178.82,178.69,3.12]
[1755624704321,10.34874505,178.8,178.69,3.12]
[1755624704619,2.91,178.79,178.69,3.12]
[1755624705915,2.91,178.83,178.69,3.12]
[1755624706219,2.51158811,178.82,178.69,3.12]
[1755624706419,2.91,178.83,178.69,3.12]
[1755624706616,2.51155821,178.82,178.69,3.12]
[1755624706817,2.91,178.83,178.69,3.12]
[1755624713122,0.97352188,178.85,178.69,3.12]
[1755624713123,2.50972631,178.82,178.69,3.12]
[1755624713323,2.91,178.84,178.69,3.12]
[1755624713520,2.91,178.82,178.69,3.12]
[1755624713722,7.43874505,178.82,178.69,3.12]
[1755624713924,2.91,178.81,178.69,3.12]
[1755624720022,2.91,178.79,178.69,3.12]
[1755624720226,2.91,178.77,178.64,3.12]
[1755624722324,2.91,178.77,178.67,3.12]
[1755624722929,2.91,178.75,178.67,3.12]
[1755624724128,4.78323618,178.73,178.64,3.12]
[1755624724329,2.91,178.72,178.64,3.12]
[1755624725428,4.78323618,178.75,178.64,3.12]
[1755624725429,7.69323618,178.76,178.64,3.12]
[1755624725626,2.91,178.76,178.66,4.78323618]
[1755624725824,2.91,178.76,178.67,3.12]
[1755624727937,4.78323618,178.76,178.67,3.12]
[1755624728138,2.91,178.75,178.67,3.12]
[1755624729941,2.91,178.75,178.63,3.03]
[1755624732134,2.91,178.75,178.63,7.66233937]
[1755624732339,2.91,178.75,178.63,3.03]
[1755624733835,7.44343258,178.78,178.63,3.03]
[1755624733836,3.16,178.73,178.63,3.03]
[1755624742545,3.16,178.77,178.63,3.03]
[1755624742742,2.52513638,178.76,178.63,3.03]
[1755624742949,2.52513638,178.75,178.63,3.03]
[1755624743145,3.16,178.77,178.63,3.03]
[1755624743343,3.16,178.77,178.65,7.44343258]
[1755624743547,3.16,178.77,178.66,3.03]
[1755624748950,0.97352188,178.85,178.63,7.66233937]
[1755624748951,3.16,178.75,178.63,7.66233937]
[1755624749257,3.16,178.73,178.63,3.03]
[1755624750449,3.16,178.71,178.63,3.03]
[1755624750862,3.16,178.71,178.6,379.31]
[1755624751861,3.16,178.71,178.6,3.03]
[1755624752258,7.94863469,178.69,178.6,3.03]
[1755624752459,3.16,178.68,178.6,3.03]
[1755624756860,3.16,178.68,178.59,141.68]
[1755624757965,3.16,178.65,178.57,3.03]
[1755624758366,3.16,178.65,178.54,3.03]
[1755624761871,4.78863469,178.64,178.54,3.03]
[1755624762069,2.97,178.63,178.54,3.03]
[1755624762367,2.97,178.6,178.51,141.64]
[1755624762768,2.97,178.57,178.45,4.78863469]
[1755624763068,2.97,178.57,178.46,3.11]
[1755624764073,2.97,178.54,178.44,141.66]
[1755624764971,2.97,178.54,178.45,3.11]
[1755624765775,2.97,178.57,178.46,3.11]
[1755624766073,2.97,178.62,178.51,7.89863469]
[1755624766671,2.97,178.62,178.44,151.08097406]
[1755624766672,2.97,178.62,178.54,4.78863469]
[1755624767269,2.97,178.62,178.47,3.11]
[1755624767472,2.97,178.62,178.5,7.89863469]
[1755624767873,2.97,178.59,178.5,3.11]
[1755624773777,2.97,178.59,178.46,3.11]
[1755624774079,2.97,178.58,178.46,3.11]
[1755624779682,2.97,178.58,178.48,3.11]
[1755624781279,2.97,178.64,178.48,10.56683116]
[1755624781484,2.97,178.64,178.49,3.11]
[1755624781886,2.97,178.64,178.5,3.11]
[1755624782477,2.97,178.64,178.5,5.6018]
[1755624782684,2.97,178.64,178.51,3.11]
[1755624790387,2.97,178.64,178.52,4.79061666]
[1755624790588,2.97,178.64,178.53,2.9]
[1755624792197,4.79061666,178.62,178.5,2.9]
[1755624792391,2.92,178.61,178.5,2.9]
[1755624794594,4.79061666,178.59,178.5,2.9]
[1755624794896,2.92,178.55,178.46,2.9]
[1755624795097,4.79061666,178.53,178.42,220.46474429]
[1755624795303,6.21776467,178.61,178.47,2.9]
[1755624795505,4.79061666,178.6,178.47,2.9]
[1755624795801,2.92,178.59,178.47,2.9]
[1755624796996,2.92,178.56,178.47,2.9]
[1755624799805,7.71061666,178.56,178.47,2.9]
[1755624800006,2.92,178.55,178.47,2.9]
[1755624800507,4.79061666,178.53,178.43,2.9]
[1755624800806,4.79061666,178.5,178.43,2.9]
[1755624801002,2.92,178.49,178.43,2.9]
[1755624801202,7.71061666,178.52,178.43,2.9]
[1755624801708,2.92,178.51,178.43,2.9]
[1755624803802,2.92,178.54,178.43,2.9]
[1755624805507,2.92,178.52,178.43,2.9]
[1755624807006,2.92,178.52,178.42,212.77412763]
[1755624808008,2.92,178.49,178.42,212.77412763]
[1755624808806,4.79061666,178.47,178.32,4.61754025]
[1755624809002,2.92,178.46,178.33,2.9]
[1755624809712,2.92,178.46,178.36,2.9]
[1755624810608,2.92,178.51,178.41,4.79061666]
[1755624810808,2.92,178.51,178.42,2.9]
[1755624813011,4.79061666,178.5,178.38,4.79061666]
[1755624813219,2.92,178.49,178.38,7.69061666]
[1755624813613,2.92,178.49,178.39,2.9]
[1755624817621,2.92,178.46,178.39,2.9]
[1755624817815,2.92,178.43,178.36,2.9]
[1755624818418,2.92,178.43,178.34,141.62]
[1755624819119,7.92061666,178.47,178.35,3.05]
[1755624819322,7.92061666,178.47,178.36,3.05]
[1755624820518,4.79061666,178.5,178.38,4.79061666]
[1755624820721,3.13,178.51,178.41,4.79061666]
[1755624820919,3.13,178.51,178.42,3.05]
[1755624826523,4.79061666,178.5,178.38,3.05]
[1755624826725,3.13,178.49,178.38,3.05]
[1755624828325,3.13,178.49,178.38,4.79061666]
[1755624828525,3.13,178.54,178.42,3.05]
[1755624831028,4.79061666,178.53,178.42,3.05]
[1755624831224,3.13,178.52,178.42,3.05]
[1755624832231,141.62,178.56,178.46,3.05]
[1755624832232,3.13,178.56,178.46,3.05]
[1755624833928,386.06776467,178.62,178.46,3.05]
[1755624834125,3.13,178.6,178.46,3.05]
[1755624835534,3.13,178.6,178.52,3.05]
[1755624836434,3.13,178.6,178.48,3.05]
[1755624840535,3.13,178.63,178.51,3.05]
[1755624840736,150.86664701,178.67,178.51,3.05]
[1755624840737,3.13,178.67,178.54,7.45450516]
[1755624841035,3.13,178.67,178.55,3.05]
[1755624844041,3.13,178.66,178.49,3.05]
[1755624844934,3.13,178.66,178.5,3.05]
[1755624845344,3.13,178.66,178.52,13.05550516]
[1755624845543,3.13,178.66,178.53,3.05]
[1755624845935,3.13,178.66,178.53,5.6009]
[1755624846144,3.13,178.66,178.54,3.05]
[1755624846940,3.13,178.66,178.54,8.6504]
[1755624847140,3.13,178.66,178.48,221.86943307]
[1755624847141,3.13,178.66,178.56,7.45450516]
[1755624847445,3.13,178.69,178.57,3.05]
[1755624856258,3.13,178.69,178.52,7.45450516]
[1755624856462,2.93,178.66,178.53,3.02]
[1755624856862,2.93,178.69,178.53,3.02]
[1755624857458,2.93,178.69,178.57,3.02]
[1755624858065,2.93,178.69,178.57,5.5994]
[1755624858264,2.93,178.69,178.58,3.02]
[1755624859862,376.58,178.72,178.59,3.02]
[1755624860267,2.93,178.73,178.59,8.6188]
[1755624860470,2.93,178.73,178.6,3.02]
[1755624860668,2.93,178.73,178.61,3.02]
[1755624864671,2.93,178.73,178.62,3.02]
[1755624874380,2.93,178.72,178.57,3.02]
[1755624874680,7.45450516,178.69,178.57,3.02]
[1755624874982,2.93,178.68,178.55,3.02]
[1755624876182,2.93,178.66,178.55,3.02]
[1755624876776,2.93,178.64,178.51,3.02]
[1755624876977,2.93,178.64,178.49,141.2]
[1755624877179,2.53334907,178.63,178.49,141.2]
[1755624877385,5.46334907,178.62,178.49,141.2]
[1755624877584,2.93,178.61,178.49,141.2]
[1755624877881,2.93,178.61,178.5,3.02]
[1755624878983,3.06,178.66,178.52,7.45450516]
[1755624879282,3.06,178.66,178.53,2.99]
[1755624879682,3.06,178.66,178.53,5.6008]
[1755624879885,3.06,178.66,178.54,2.99]
[1755624880084,3.06,178.66,178.54,10.44450516]
[1755624880278,3.06,178.66,178.55,2.99]
[1755624882790,144.28,178.7,178.55,2.99]